[Event "II Llinars Open 2022"]
[Site "Llinars del Valles"]
[Date "2022.06.26"]
[Round "2.4"]
[White "Izagirre Alsua, Aritz"]
[Black "Valenzuela Gomez, Fernando"]
[Result "0-1"]
[ECO "C00"]
[WhiteElo "1904"]
[BlackElo "2373"]
[Annotator "TA"]
[PlyCount "74"]
[EventDate "2022.06.24"]
[EventType "swiss"]
[EventCountry "ESP"]
[SourceTitle "playchess.com"]
[Source "ChessBase"]
[SourceQuality "1"]
[TimeControl "5400+30"]

{[%evp 17,74,-39,-31,-42,-26,-36,-13,-34,-50,-42,-9,-66,-76,-77,-54,-83,-70,-95,-79,-115,-70,-112,-108,-142,-103,-150,-141,-164,-125,-325,-320,-362,-351,-356,-348,-344,-339,-383,-395,-426,-413,-866,-865,-1239,-1190,-2446,-1754,-2055,-2210,-2022,-1945,-6295,-1749,-2425,-1445,-6331,-5410,-29967,-2750]} 1. e4 {[%emt 0:00:03]} e6 {[%emt 0:00:55]} 2. d3 {[%emt 0:00:15]} d5 {[%emt 0:00:14]} 3. Nd2 {[%emt 0:00:10]} Nc6 {[%emt 0:00:07]} 4. Ngf3 {[%emt 0:00:51]} Nf6 {[%emt 0:00:06]} 5. g3 {[%emt 0:01:17]} dxe4 {[%emt 0:00:18]} 6. dxe4 {[%emt 0:00:25]} Bc5 {[%emt 0:00:02]} 7. Bg2 {[%emt 0:01:01]} e5 {[%emt 0:00:02]} 8. O-O {[%emt 0:00:26]} O-O {[%emt 0:00:15]} 9. Qe2 {[%emt 0:03:45]} a5 {[%emt 0:00:51][%cal Ba7a5,Ba5a4][%mdl 32]} 10. Nb3 {[%emt 0:02:15] C00: French: Unusual White 2nd moves.} Bd6 {[%emt 0:00:40]} 11. Rd1 {[%emt 0:01:28]} a4 {[%emt 0:01:11]} 12. Nc5 {[%emt 0:05:39] The position is equal.} Qe7 {[%emt 0:00:40]} 13. Nd3 {[%emt 0:00:30] [#]} h6 $146 {[%emt 0:00:40]} ({Predecessor:} 13... b6 14. Bg5 h6 15. Bxf6 Qxf6 16. c3 Be6 17. Nh4 Bc4 18. Nf5 Rad8 19. Ne3 Ba6 {0-1 (47) Chaucanes,J-Mendoza Morales,L Bogota 2004}) 14. a3 {[%emt 0:02:44]} (14. h3 $11) 14... Bg4 $36 {[%emt 0:01:14][%mdl 2048] [#] Strongly threatening ...Bxf3. White is under strong pressure.} 15. c3 {[%emt 0:01:57]} Na5 {[%emt 0:00:33]} 16. h3 {[%emt 0:01:24]} Bd7 {[%emt 0:01:16]} 17. Nb4 {[%emt 0:03:33]} Rfd8 {[%emt 0:04:00][%cal Bf8d8,Bd8d7,Bd7d2][%mdl 32]} 18. Nd2 {[%emt 0:03:59]} c6 {[%emt 0:14:14]} 19. Nf1 {[%emt 0:04:24]} Be6 {[%emt 0:02:57]} 20. Ne3 {[%emt 0:03:25] Inhibits Bc4.} g6 {[%emt 0:00:07]} 21. Bd2 {[%emt 0:02:02]} (21. Nf1 $142) 21... Bb3 $17 {[%emt 0:02:53]} 22. Re1 {[%emt 0:01:01]} Rd7 {[%emt 0:00:25]} 23. Ng4 $2 {[%emt 0:06:01] White does not recover from this.} (23. Nbc2 $17 {was worth a try.}) 23... Nxg4 $19 {[%emt 0:00:16]} 24. Qxg4 {[%emt 0:00:11]} Bxb4 {[%emt 0:01:47]} 25. cxb4 {[%emt 0:03:08]} Rxd2 {[%emt 0:08:15]} 26. bxa5 {[%emt 0:03:47]} Rxb2 {[%emt 0:00:17]} 27. Qf3 {[%emt 0:05:21]} Rd8 {[%emt 0:01:02]} 28. a6 {[%emt 0:04:46]} bxa6 {[%emt 0:00:26]} 29. Re2 {[%emt 0:00:23]} (29. Rec1 $142) 29... Rd1+ {[%emt 0:02:06]} 30. Rxd1 {[%emt 0:04:07]} Bxd1 {[%emt 0:00:12]} 31. Bf1 {[%emt 0:01:00]} Bxe2 {[%emt 0:00:21]} 32. Bxe2 {[%emt 0:00:08][%mdl 4096] Endgame KQR-KQB} Rb3 {[%emt 0:00:02]} 33. Qg4 {[%emt 0:00:36]} Kg7 {[%emt 0:02:16]} 34. Bxa6 {[%emt 0:03:34]} Rxa3 {[%emt 0:00:27]} (34... Rb1+ $142 35. Kg2 Qxa3) 35. h4 {[%emt 0:00:31]} h5 {[%emt 0:00:30]} 36. Qe2 {[%emt 0:02:21]} Qc5 {[%emt 0:00:22] [#] ( -> ...Rxg3+)} 37. g4 {[%emt 0:01:56]} Rg3+ {[%emt 0:00:08] Weighted Error Value: White=1.46/Black=0.57} (37... Ra1+ $142 38. Kg2 Qc1 39. Qf1 a3 40. f4 a2 41. fxe5 Qxf1+ 42. Bxf1 Re1 43. gxh5 a1=Q 44. Bd3 Rg1+ 45. Kf3 Qe1 46. h6+ Kxh6 47. e6 f6 48. e7 Rg3+ 49. Kf4 Qf2#) 0-1

[Event "II Llinars Open 2022"]
[Site "Llinars del Valles"]
[Date "2022.06.26"]
[Round "2.5"]
[White "Jimenez Ruano, Adrian"]
[Black "Segura Marsa, Andres"]
[Result "0-1"]
[ECO "A00"]
[WhiteElo "2263"]
[BlackElo "1862"]
[Annotator "RC"]
[PlyCount "148"]
[EventDate "2022.06.24"]
[EventType "swiss"]
[EventCountry "ESP"]
[SourceTitle "playchess.com"]
[Source "ChessBase"]
[SourceQuality "1"]
[TimeControl "5400+30"]

1. h4 {[%emt 0:16:16]} e5 {[%emt 0:05:11]} 2. c4 {[%emt 0:01:09]} Nf6 {[%emt 0:00:52]} 3. Nc3 {[%emt 0:00:42]} d5 {[%emt 0:00:53]} 4. cxd5 {[%emt 0:01:03]} Nxd5 {[%emt 0:00:13]} 5. Nf3 {[%emt 0:05:17]} Nc6 {[%emt 0:01:12]} 6. d3 {[%emt 0:07:28]} Bg4 {[%emt 0:02:24]} 7. Qa4 {[%emt 0:01:51]} Bxf3 {[%emt 0:09:11]} 8. gxf3 {[%emt 0:00:06]} Nb6 {[%emt 0:00:25]} 9. Qd1 {[%emt 0:01:33]} h5 {[%emt 0:06:46]} 10. Bg5 {[%emt 0:04:01]} Be7 {[%emt 0:06:49]} 11. Qd2 {[%emt 0:01:36]} Bxg5 {[%emt 0:04:12]} 12. Qxg5 {[%emt 0:06:40]} Qxg5 {[%emt 0:01:41]} 13. hxg5 {[%emt 0:00:01]} Nd4 {[%emt 0:06:21]} 14. O-O-O {[%emt 0:01:45]} O-O-O {[%emt 0:01:37]} 15. Bg2 {[%emt 0:02:25]} Nd5 {[%emt 0:02:33]} 16. e3 {[%emt 0:05:09]} Nxc3 {[%emt 0:03:46]} 17. bxc3 {[%emt 0:00:02]} Ne6 {[%emt 0:00:10]} 18. Bh3 {[%emt 0:00:59]} Kd7 {[%emt 0:04:06]} 19. d4 {[%emt 0:14:53]} exd4 {[%emt 0:01:47]} 20. exd4 {[%emt 0:00:48]} Kd6 {[%emt 0:02:56]} 21. Bxe6 {[%emt 0:01:35]} Kxe6 {[%emt 0:01:09]} 22. Rde1+ {[%emt 0:00:13]} Kd7 {[%emt 0:02:51]} 23. Re4 {[%emt 0:02:17]} g6 {[%emt 0:02:36]} 24. Kd2 {[%emt 0:01:01]} Rde8 {[%emt 0:04:54]} 25. Rhh4 {[%emt 0:01:12]} Re6 {[%emt 0:00:55]} 26. Kd3 {[%emt 0:00:32]} f5 {[%emt 0:03:33]} 27. gxf6 {[%emt 0:02:40]} Rxf6 {[%emt 0:00:02]} 28. f4 {[%emt 0:02:23]} Re8 {[%emt 0:05:49]} 29. f3 {[%emt 0:02:22]} Ree6 {[%emt 0:00:55]} 30. Ke3 {[%emt 0:03:58]} Rb6 {[%emt 0:03:08]} 31. Rh2 {[%emt 0:00:46]} Rb1 {[%emt 0:00:37]} 32. c4 {[%emt 0:06:24]} Re1+ {[%emt 0:03:14]} 33. Kd3 {[%emt 0:00:12]} Rxe4 {[%emt 0:01:37]} 34. Kxe4 {[%emt 0:00:01]} Re6+ {[%emt 0:00:50]} 35. Kd3 {[%emt 0:00:01]} Rf6 {[%emt 0:01:26]} 36. Ke4 {[%emt 0:00:08]} Ke6 {[%emt 0:00:59]} 37. Rb2 {[%emt 0:02:14]} b6 {[%emt 0:00:42]} 38. Rg2 {[%emt 0:00:11]} Kf7 {[%emt 0:00:48]} 39. d5 {[%emt 0:03:12]} Rf5 {[%emt 0:01:16]} 40. Rh2 {[%emt 0:01:45]} Ke7 {[%emt 0:00:52]} 41. Rg2 {[%emt 0:00:16]} Kf6 {[%emt 0:01:49]} 42. Rh2 {[%emt 0:00:11]} Kg7 {[%emt 0:00:24]} 43. c5 {[%emt 0:02:19]} bxc5 {[%emt 0:01:33]} 44. Rc2 {[%emt 0:00:02]} Rf7 {[%emt 0:01:47]} 45. Rxc5 {[%emt 0:00:01]} Re7+ {[%emt 0:00:01]} 46. Kd4 {[%emt 0:00:09]} Kf6 {[%emt 0:00:16]} 47. Ra5 {[%emt 0:01:41]} h4 {[%emt 0:00:32]} 48. Rc5 {[%emt 0:01:50]} h3 {[%emt 0:00:21]} 49. Rc2 {[%emt 0:00:36]} Rh7 {[%emt 0:00:29]} 50. Rh2 {[%emt 0:00:04]} Kf5 {[%emt 0:00:09]} 51. Ke3 {[%emt 0:00:08]} Rh4 {[%emt 0:00:28]} 52. a3 {[%emt 0:00:55]} Rh5 {[%emt 0:00:15]} 53. a4 {[%emt 0:00:57]} a5 {[%emt 0:00:04]} 54. Rh1 {[%emt 0:00:48]} h2 {[%emt 0:00:09]} 55. Kf2 {[%emt 0:00:06]} Kxf4 {[%emt 0:00:08]} 56. Kg2 {[%emt 0:00:03]} Ke3 {[%emt 0:01:17]} 57. Re1+ {[%emt 0:01:25]} Kd2 {[%emt 0:00:11]} 58. Rh1 {[%emt 0:00:04]} Ke2 {[%emt 0:00:56]} 59. Kg3 {[%emt 0:00:16]} Ke3 {[%emt 0:00:46]} 60. Kg2 {[%emt 0:00:07]} Rxd5 {[%emt 0:00:54]} 61. Re1+ {[%emt 0:00:18]} Kd2 {[%emt 0:00:10]} 62. Re6 {[%emt 0:00:17]} Rh5 {[%emt 0:01:37]} 63. Kh1 {[%emt 0:00:01]} c5 {[%emt 0:00:07]} 64. Rxg6 {[%emt 0:00:59]} c4 {[%emt 0:00:28]} 65. f4 {[%emt 0:00:03]} Kc3 {[%emt 0:01:10]} 66. Rg5 {[%emt 0:00:24]} Rh4 {[%emt 0:01:24]} 67. Rxa5 {[%emt 0:00:11]} Rxf4 {[%emt 0:00:47]} 68. Kxh2 {[%emt 0:00:21]} Rd4 {[%emt 0:01:19]} 69. Rb5 {[%emt 0:02:19]} Kd2 {[%emt 0:00:34]} 70. Rb2+ {[%emt 0:00:01]} Kc1 {[%emt 0:00:02]} 71. Ra2 {[%emt 0:00:01]} Kb1 {[%emt 0:00:37]} 72. Re2 {[%emt 0:02:13]} c3 {[%emt 0:00:06]} 73. Re3 {[%emt 0:00:31]} c2 {[%emt 0:00:25]} 74. Rb3+ {[%emt 0:00:01]} Ka2 {[%emt 0:00:12]} 0-1

[Event "II Llinars Open 2022"]
[Site "Llinars del Valles"]
[Date "2022.06.26"]
[Round "2.6"]
[White "Juncosa Padros, Ernest"]
[Black "Salvans Serra, Arnau"]
[Result "1/2-1/2"]
[ECO "E49"]
[WhiteElo "1877"]
[BlackElo "2227"]
[Annotator "RC"]
[PlyCount "151"]
[EventDate "2022.06.24"]
[EventType "swiss"]
[EventCountry "ESP"]
[SourceTitle "playchess.com"]
[Source "ChessBase"]
[SourceQuality "1"]
[TimeControl "5400+30"]

1. d4 {[%emt 0:00:06]} Nf6 {[%emt 0:00:13]} 2. c4 {[%emt 0:00:10]} e6 {[%emt 0:00:30]} 3. Nc3 {[%emt 0:00:30]} Bb4 {[%emt 0:00:30]} 4. f3 {[%emt 0:00:30]} d5 {[%emt 0:01:58]} 5. a3 {[%emt 0:00:00]} Bxc3+ {[%emt 0:01:27]} 6. bxc3 {[%emt 0:00:03]} O-O {[%emt 0:02:19]} 7. cxd5 {[%emt 0:01:00]} exd5 {[%emt 0:00:08]} 8. e3 {[%emt 0:00:35]} c5 {[%emt 0:01:47]} 9. Bd3 {[%emt 0:00:30]} Re8 {[%emt 0:01:36]} 10. Ne2 {[%emt 0:00:53]} b6 {[%emt 0:00:31]} 11. O-O {[%emt 0:00:37]} Ba6 {[%emt 0:00:43]} 12. Ng3 {[%emt 0:00:53]} Bxd3 {[%emt 0:06:35]} 13. Qxd3 {[%emt 0:00:07]} Nc6 {[%emt 0:00:09]} 14. Bb2 {[%emt 0:01:20]} Na5 {[%emt 0:12:38]} 15. Rae1 {[%emt 0:04:57]} Nc4 {[%emt 0:03:06]} 16. Bc1 {[%emt 0:01:35]} cxd4 {[%emt 0:04:27]} 17. cxd4 {[%emt 0:00:48]} Nd7 {[%emt 0:01:01]} 18. e4 {[%emt 0:11:50]} Nf8 {[%emt 0:07:04]} 19. f4 {[%emt 0:06:08]} b5 {[%emt 0:00:44]} 20. e5 {[%emt 0:00:40]} Qb6 {[%emt 0:01:38]} 21. Kh1 {[%emt 0:01:28]} a5 {[%emt 0:03:07]} 22. f5 {[%emt 0:15:14]} f6 {[%emt 0:02:30]} 23. e6 {[%emt 0:29:56]} Ra7 {[%emt 0:07:32]} 24. Nh5 {[%emt 0:01:16]} Qd6 {[%emt 0:05:34]} 25. Rf3 {[%emt 0:02:54]} Kh8 {[%emt 0:11:54]} 26. Rh3 {[%emt 0:02:11]} b4 {[%emt 0:01:37]} 27. Nf4 {[%emt 0:09:51]} bxa3 {[%emt 0:02:41]} 28. Ng6+ {[%emt 0:03:24]} Kg8 {[%emt 0:01:16]} 29. Nxf8 {[%emt 0:04:17]} Qxf8 {[%emt 0:00:12]} 30. Bxa3 {[%emt 0:00:58]} Nxa3 {[%emt 0:00:49]} 31. Qxa3 {[%emt 0:00:01]} Qxa3 {[%emt 0:01:13]} 32. Rxa3 {[%emt 0:00:01]} a4 {[%emt 0:00:21]} 33. Kg1 {[%emt 0:01:06]} Rb8 {[%emt 0:01:18]} 34. Rc1 {[%emt 0:01:02]} g6 {[%emt 0:00:49]} 35. Rc5 {[%emt 0:00:30]} Rd8 {[%emt 0:02:39]} 36. fxg6 {[%emt 0:00:33]} hxg6 {[%emt 0:00:01]} 37. e7 {[%emt 0:00:15]} Re8 {[%emt 0:00:59]} 38. Rxd5 {[%emt 0:00:23]} Rexe7 {[%emt 0:00:32]} 39. Rc5 {[%emt 0:00:41]} Ra6 {[%emt 0:00:18]} 40. d5 {[%emt 0:00:28]} Kf7 {[%emt 0:00:31]} 41. Rc6 {[%emt 0:00:22]} Ra5 {[%emt 0:01:10]} 42. d6 {[%emt 0:00:51]} Rd7 {[%emt 0:00:32]} 43. Rc7 {[%emt 0:00:31]} Ke6 {[%emt 0:00:05]} 44. Re3+ {[%emt 0:00:32]} Re5 {[%emt 0:00:10]} 45. Rxd7 {[%emt 0:00:31]} Kxd7 {[%emt 0:00:09]} 46. Ra3 {[%emt 0:00:28]} Re4 {[%emt 0:00:05]} 47. Rd3 {[%emt 0:00:06]} Rb4 {[%emt 0:00:07]} 48. Rf3 {[%emt 0:00:43]} f5 {[%emt 0:00:54]} 49. Rg3 {[%emt 0:00:35]} Rg4 {[%emt 0:00:47]} 50. Rd3 {[%emt 0:00:03]} Rb4 {[%emt 0:01:04]} 51. Rg3 {[%emt 0:00:02]} Kxd6 {[%emt 0:00:23]} 52. Rxg6+ {[%emt 0:00:07]} Kc5 {[%emt 0:00:22]} 53. Rf6 {[%emt 0:01:53]} a3 {[%emt 0:01:50]} 54. Ra6 {[%emt 0:00:29]} Rb1+ {[%emt 0:00:19]} 55. Kf2 {[%emt 0:00:01]} Rb2+ {[%emt 0:00:07]} 56. Kf3 {[%emt 0:00:32]} a2 {[%emt 0:00:06]} 57. h4 {[%emt 0:00:29]} Kb4 {[%emt 0:00:09]} 58. Kf4 {[%emt 0:00:31]} Rf2+ {[%emt 0:00:54]} 59. Kg3 {[%emt 0:00:33]} Rc2 {[%emt 0:00:15]} 60. Kf4 {[%emt 0:00:03]} Kb5 {[%emt 0:02:08]} 61. Ra3 {[%emt 0:01:02]} Kb4 {[%emt 0:01:38]} 62. Ra8 {[%emt 0:00:38]} Rc4+ {[%emt 0:00:11]} 63. Kg5 {[%emt 0:00:11]} Kb3 {[%emt 0:02:45]} 64. Rxa2 {[%emt 0:00:53]} Kxa2 {[%emt 0:00:01]} 65. h5 {[%emt 0:00:01]} f4 {[%emt 0:00:46]} 66. h6 {[%emt 0:00:52]} Kb3 {[%emt 0:00:10]} 67. h7 {[%emt 0:00:34]} Rc8 {[%emt 0:00:02]} 68. Kxf4 {[%emt 0:00:02]} Rh8 {[%emt 0:00:07]} 69. g4 {[%emt 0:00:10]} Rxh7 {[%emt 0:00:08]} 70. g5 {[%emt 0:00:11]} Kc4 {[%emt 0:00:07]} 71. g6 {[%emt 0:00:21]} Rh1 {[%emt 0:00:36]} 72. Ke5 {[%emt 0:01:13]} Rg1 {[%emt 0:00:35]} 73. Kf6 {[%emt 0:00:11]} Kd5 {[%emt 0:00:02]} 74. g7 {[%emt 0:00:17]} Kd6 {[%emt 0:00:33]} 75. Kf7 {[%emt 0:00:05]} Rf1+ {[%emt 0:00:28]} 76. Ke8 {[%emt 0:01:39]} 1/2-1/2

[Event "II Llinars Open 2022"]
[Site "Llinars del Valles"]
[Date "2022.06.26"]
[Round "2.7"]
[White "Luna Cortes, Luis"]
[Black "Diaz Perez, Michel Alejandro"]
[Result "1-0"]
[ECO "B50"]
[WhiteElo "2215"]
[BlackElo "2439"]
[Annotator "TA"]
[PlyCount "73"]
[EventDate "2022.06.24"]
[EventType "swiss"]
[EventCountry "ESP"]
[SourceTitle "playchess.com"]
[Source "ChessBase"]
[SourceQuality "1"]
[TimeControl "5400+30"]

{[%evp 10,73,8,-9,6,0,52,6,37,0,43,44,40,25,28,28,69,61,106,90,127,131,121,122,116,119,145,134,162,155,155,100,103,103,103,100,99,95,116,66,147,140,150,143,258,129,369,347,564,430,423,248,241,263,260,256,308,262,337,261,362,350,374,350,835,807]} 1. e4 {[%emt 0:06:51]} c5 {[%emt 0:00:11]} 2. Nf3 {[%emt 0:00:08]} d6 {[%emt 0:00:14]} 3. g3 {[%emt 0:00:28]} g6 {[%emt 0:01:52]} 4. Bg2 {[%emt 0:00:07]} Bg7 {[%emt 0:00:07]} 5. O-O {[%emt 0:00:07]} Nc6 {[%emt 0:00:18]} 6. Re1 {[%emt 0:00:40]} e6 {[%emt 0:04:14] B50: Sicilian: 2...d6, Miscellaneous.} 7. c3 {[%emt 0:00:23]} Nge7 {[%emt 0:03:16]} (7... e5 $11) 8. Na3 {[%emt 0:11:45]} (8. d4 $14 {is more appropriate.}) 8... O-O {[%emt 0:07:06] The position is equal.} 9. Nc2 {[%emt 0:00:28]} Rb8 {[%emt 0:10:20]} 10. d4 {[%emt 0:03:04]} cxd4 {[%emt 0:00:51] [#]} 11. Nfxd4 $146 {[%emt 0:00:07]} ({Predecessor:} 11. Ncxd4 a6 12. Be3 b5 13. a3 Bb7 14. Qc2 Rc8 15. a4 Nxd4 16. Bxd4 Bxd4 17. Nxd4 {½-½ (38) Kopcova,L (1798)-Khristenko,A (1938) Khanty-Mansiysk 2016}) 11... b5 {[%emt 0:02:29]} 12. Bg5 {[%emt 0:01:30] And now Nxc6 would win.} Nxd4 {[%emt 0:15:42]} 13. Nxd4 {[%emt 0:00:16] aiming for Nc6.} f6 {[%emt 0:13:58]} 14. Be3 {[%emt 0:00:15] 0x0.0008619aefc9dp-1022s more active pieces.} e5 {[%emt 0:00:07]} 15. Qb3+ $1 {[%emt 0:00:28]} Kh8 {[%emt 0:03:55]} 16. Ne6 {[%emt 0:01:31]} ({Not} 16. Nxb5 a6 17. a4 axb5 18. axb5 f5 $17) 16... Bxe6 {[%emt 0:00:11]} 17. Qxe6 {[%emt 0:00:06]} Qc7 {[%emt 0:00:49]} 18. Red1 {[%emt 0:00:29]} Rfd8 {[%emt 0:07:53]} 19. Rd2 {[%emt 0:03:14]} d5 {[%emt 0:04:31] [#]} 20. exd5 {[%emt 0:00:38]} (20. Qa6 $142 $1) 20... Rd6 $16 {[%emt 0:00:24] White must now prevent ...Nf5.} 21. Qg4 $36 {[%emt 0:01:09][%mdl 2048] White is on the roll.} Nf5 {[%emt 0:00:16]} 22. Qe2 {[%emt 0:05:02]} Nxe3 {[%emt 0:05:03]} 23. Qxe3 {[%emt 0:00:17]} (23. fxe3 {seems wilder.} f5 24. e4 Rf6 25. Rf1) 23... f5 {[%emt 0:00:11]} 24. Rc1 {[%emt 0:01:32]} (24. a4 $16) 24... Qd7 {[%emt 0:02:22] [#]} (24... Rc8 $14) 25. b3 $1 {[%emt 0:00:23]} e4 {[%emt 0:01:55]} 26. c4 {[%emt 0:00:07]} b4 {[%emt 0:02:25]} (26... Qf7 $16 {keeps fighting.} 27. Rcd1 Rbd8) 27. Bf1 {[%emt 0:01:38]} ({White should try} 27. Rcd1 $18) 27... a5 $2 {[%emt 0:00:22] Loses the game.} (27... Rc8 $16 28. Rcd1 Qc7) 28. c5 $18 {[%emt 0:02:40]} Rf6 {[%emt 0:05:03]} (28... Rxd5 $2 29. c6 Rxd2 30. cxd7 $18) (28... Qc7 {was necessary.} 29. Rdd1 Rdd8) 29. Qf4 {[%emt 0:01:40]} Rc8 {[%emt 0:04:11]} 30. c6 {[%emt 0:11:01]} (30. d6 $142 g5 31. Qxg5) 30... Qd6 {[%emt 0:00:12]} 31. Qxd6 {[%emt 0:00:19]} Rxd6 {[%emt 0:00:08]} 32. Rc5 {[%emt 0:00:38]} Bc3 {[%emt 0:04:09]} 33. Rd1 {[%emt 0:00:00]} Kg7 {[%emt 0:01:43]} 34. Rxa5 {[%emt 0:01:57] Hoping for Ra7+.} Rc7 {[%emt 0:00:05]} 35. Rb5 {[%emt 0:02:19]} Ra7 {[%emt 0:00:55]} 36. Rb6 {[%emt 0:01:37]} Kf8 $2 {[%emt 0:00:30]} (36... Rc7 37. Ba6 Be5) 37. c7 {[%emt 0:00:19] Weighted Error Value: White=0.25 (precise) /Black=0.42} 1-0

[Event "II Llinars Open 2022"]
[Site "Llinars del Valles"]
[Date "2022.06.26"]
[Round "2.8"]
[White "Deulonder Camins, Xavier"]
[Black "Prats Safont, Sergi"]
[Result "0-1"]
[ECO "B40"]
[WhiteElo "1835"]
[BlackElo "2206"]
[Annotator "RC"]
[PlyCount "60"]
[EventDate "2022.06.24"]
[EventType "swiss"]
[EventCountry "ESP"]
[SourceTitle "playchess.com"]
[Source "ChessBase"]
[SourceQuality "1"]
[TimeControl "5400+30"]

1. e4 {[%emt 0:00:17]} c5 {[%emt 0:00:46]} 2. Nf3 {[%emt 0:00:08]} a6 {[%emt 0:00:31]} 3. Nc3 {[%emt 0:00:09]} e6 {[%emt 0:00:49]} 4. d3 {[%emt 0:01:23]} b5 {[%emt 0:03:34]} 5. g3 {[%emt 0:00:39]} Bb7 {[%emt 0:00:14]} 6. Bg2 {[%emt 0:00:08]} d6 {[%emt 0:03:34]} 7. O-O {[%emt 0:00:23]} Nf6 {[%emt 0:02:57]} 8. b3 {[%emt 0:04:06]} Be7 {[%emt 0:02:11]} 9. Bb2 {[%emt 0:00:20]} O-O {[%emt 0:00:22]} 10. Re1 {[%emt 0:00:57]} Qc7 {[%emt 0:02:38]} 11. Qd2 {[%emt 0:06:20]} Nc6 {[%emt 0:01:40]} 12. Rad1 {[%emt 0:00:45]} Rac8 {[%emt 0:14:42]} 13. Ne2 {[%emt 0:15:29]} c4 {[%emt 0:10:07]} 14. Qc3 {[%emt 0:10:47]} d5 {[%emt 0:02:08]} 15. dxc4 {[%emt 0:05:35]} Bb4 {[%emt 0:14:45]} 16. Qe3 {[%emt 0:00:26]} Nxe4 {[%emt 0:04:24]} 17. c3 {[%emt 0:11:19]} Bc5 {[%emt 0:00:30]} 18. Nfd4 {[%emt 0:00:59]} Nxd4 {[%emt 0:03:17]} 19. cxd4 {[%emt 0:00:57]} Bb4 {[%emt 0:00:35]} 20. Rf1 {[%emt 0:02:08]} bxc4 {[%emt 0:00:26]} 21. bxc4 {[%emt 0:02:02]} Qxc4 {[%emt 0:00:23]} 22. a3 {[%emt 0:00:48]} Ba5 {[%emt 0:02:12]} 23. Nc1 {[%emt 0:01:23]} Qc2 {[%emt 0:04:34]} 24. Nd3 {[%emt 0:00:59]} Qb3 {[%emt 0:01:46]} 25. Bf3 {[%emt 0:13:57]} Rc2 {[%emt 0:03:10]} 26. Bxe4 {[%emt 0:02:35]} dxe4 {[%emt 0:00:20]} 27. Nc5 {[%emt 0:00:19]} Qxe3 {[%emt 0:00:22]} 28. fxe3 {[%emt 0:00:55]} Rxb2 {[%emt 0:00:09]} 29. Rf4 {[%emt 0:01:52]} Bd5 {[%emt 0:03:16]} 30. Rdf1 {[%emt 0:00:31]} Bd2 {[%emt 0:00:49]} 0-1

[Event "II Llinars Open 2022"]
[Site "Llinars del Valles"]
[Date "2022.06.27"]
[Round "3.1"]
[White "Serrano Batova, Vicent"]
[Black "Narciso Dublan, Marc"]
[Result "0-1"]
[ECO "D11"]
[WhiteElo "1992"]
[BlackElo "2464"]
[Annotator "TA"]
[PlyCount "48"]
[EventDate "2022.06.24"]
[EventType "swiss"]
[EventCountry "ESP"]
[SourceTitle "playchess.com"]
[Source "ChessBase"]
[SourceQuality "1"]
[TimeControl "5400+30"]

{[%evp 12,48,0,-22,-27,-19,-27,-27,-26,-27,-23,-32,-25,-53,-28,-28,0,-39,-36,-39,-28,-29,-36,-38,-39,-38,-35,-37,-29,-165,-168,-466,-482,-583,-558,-566,-560,-541,-530]} 1. d4 {[%emt 0:00:03]} d5 {[%emt 0:00:26]} 2. Nf3 {[%emt 0:00:01]} Nf6 {[%emt 0:00:24]} 3. e3 {[%emt 0:00:04]} Bg4 {[%emt 0:00:22]} 4. c4 {[%emt 0:00:28]} c6 {[%emt 0:00:24]} 5. cxd5 {[%emt 0:02:47]} cxd5 {[%emt 0:03:42]} 6. Qb3 {[%emt 0:00:14]} Bxf3 {[%emt 0:00:06] is the legacy move (6...Qc7).} 7. gxf3 {[%emt 0:02:39]} Qd7 {[%emt 0:01:07] D11: Slav Defence: 3 Nf3 sidelines and 3...Nf6 4 e3 Bg4.} 8. Bb5 {[%emt 0:06:23]} Nc6 {[%emt 0:00:07]} 9. Bd2 {[%emt 0:02:22]} e6 {[%emt 0:01:14] [#] Black has an edge.} 10. O-O $146 {[%emt 0:05:15]} ({Predecessor:} 10. Rg1 Rc8 11. Nc3 a6 12. Bxc6 Rxc6 13. Na4 Qc7 14. Ke2 b5 15. Nc5 Bxc5 16. dxc5 {½-½ (51) Jankovic,B-Zulj,L Medulin 1997}) 10... Bd6 {[%emt 0:05:14]} 11. Bb4 {[%emt 0:15:47]} O-O {[%emt 0:00:41]} 12. Rc1 {[%emt 0:21:19]} Bxb4 {[%emt 0:12:40]} (12... e5 $5 {[%cal Re5d4]}) 13. Bxc6 {[%emt 0:00:24]} Qe7 {[%emt 0:00:14]} 14. Bb5 {[%emt 0:00:56]} Bd6 {[%emt 0:00:20]} 15. Nc3 {[%emt 0:02:32]} g5 {[%emt 0:17:42]} 16. Kh1 {[%emt 0:03:31]} Kh8 {[%emt 0:00:47]} 17. Rg1 {[%emt 0:02:47]} Rg8 {[%emt 0:01:15]} 18. Bd3 {[%emt 0:03:17]} a6 {[%emt 0:05:20]} 19. e4 {[%emt 0:05:34]} Nh5 {[%emt 0:09:23][%cal Od6h2]} 20. exd5 {[%emt 0:14:23] White does not recover from this.} (20. e5 Bb4 21. Rad1 Bxc3 22. Qxc3 Nf4 $17) (20. Ne2 $11) 20... g4 $19 {[%emt 0:07:16]} 21. Ne4 $2 {[%emt 0:00:30] [#]} (21. Rxg4 $2 Rxg4 22. fxg4 Qh4 $19) (21. f4) 21... Bxh2 $1 {[%emt 0:01:28][%mdl 512] Strongly threatening ...Qh4. Black is clearly winning.} 22. Rxg4 {[%emt 0:03:17]} (22. Rg2 Bf4) 22... Rxg4 {[%emt 0:01:48]} ({Not} 22... f5 23. Qa3 Qxa3 24. Rxg8+ Rxg8 25. bxa3 fxe4 26. fxe4 $17) 23. fxg4 {[%emt 0:00:02] aiming for Bf1.} Qh4 {[%emt 0:00:48] ( -> ...Nf4)} 24. Bf1 {[%emt 0:01:09] Black must now prevent Qh3.} Nf4 {[%emt 0:13:39] Against Qh3.  Weighted Error Value: White=0.45/Black=0.04 (flawless)} ({Inferior is} 24... Bg3+ 25. Kg2 Bc7 26. Ng3 Nf4+ 27. Kg1 Nxd5 28. Bg2 $17 (28. Qxb7 $2 Rb8 $19)) 0-1